bitfinex-derivatives/quotes_ETHF0:USTF0_20250520
["timestamp","ask_amount","ask_price","bid_price","bid_amount"]
[1747722689504,3.52679,2541.1,2541.0,2.02420888]
[1747722690111,0.78679,2541.1,2541.0,2.02420888]
[1747722690308,0.78679,2541.1,2541.0,1.35440888]
[1747722690613,0.78679,2541.1,2541.0,0.00590888]
[1747722691113,3.52679,2541.1,2541.0,0.00590888]
[1747722692712,3.52679,2541.1,2541.0,8.88e-06]
[1747722693911,4.77459,2541.1,2541.0,8.88e-06]
[1747722694911,8.9878,2541.1,2539.8,3.2078]
[1747722695113,3.99487,2540.2,2540.1,1.3685]
[1747722695513,0.78706,2540.3,2540.1,2.1556]
[1747722695709,3.2078,2540.5,2540.2,1.3685]
[1747722695911,1.9962,2540.7,2540.4,0.78701]
[1747722696107,0.6309,2540.7,2540.5,2.80536]
[1747722696312,0.78695,2540.6,2540.5,2.80535]
[1747722696508,0.78695,2540.6,2540.5,2.0184]
[1747722697006,0.78701,2540.4,2540.3,0.6348]
[1747722697207,0.78707,2540.2,2540.1,0.00590888]
[1747722697806,0.78723,2539.7,2539.6,0.6348]
[1747722698518,0.78729,2539.5,2539.4,0.6303]
[1747722698719,3.99509,2539.5,2539.4,0.6303]
[1747722699316,3.99509,2539.5,2539.4,1.8805]
[1747722700313,3.2078,2539.5,2539.4,1.8805]
[1747722700513,0.00590888,2539.7,2539.4,1.8805]
[1747722700713,0.79315888,2539.7,2539.4,1.8805]
[1747722700921,0.78728,2539.6,2539.4,2.6678]
[1747722701221,0.78727,2539.6,2539.5,0.78729]
[1747722701420,0.78727,2539.6,2539.5,2.07399]
[1747722701621,0.78727,2539.6,2539.5,1.2867]
[1747722702022,0.00590888,2539.7,2539.5,1.2867]
[1747722702227,0.00590888,2539.7,2539.6,1.41736]
[1747722702617,0.00590888,2539.7,2539.6,6.41736]
[1747722703122,0.00590888,2539.7,2539.2,3.21370888]
[1747722703417,0.78726,2539.6,2539.5,1.2933]
[1747722703823,0.00590888,2539.7,2539.6,0.78726]
[1747722704024,0.00590888,2539.7,2539.6,1.41046]
[1747722704232,0.00590888,2539.7,2539.5,1.2933]
[1747722704233,0.78726,2539.6,2539.5,1.2933]
[1747722704519,0.78735,2539.3,2539.2,0.00590888]
[1747722704715,0.78759,2538.6,2538.2,5.1702]
[1747722704916,0.78757,2538.6,2538.4,0.78761]
[1747722705127,0.78755,2538.7,2538.5,2.08089]
[1747722705528,1.2693,2539.0,2538.5,1.2933]
[1747722705718,0.78755,2538.7,2538.5,1.29920888]
[1747722706116,1.2693,2539.0,2538.5,1.29920888]
[1747722706117,0.78757,2538.6,2538.5,1.29920888]
[1747722706321,0.78757,2538.6,2538.5,0.00590888]
[1747722706623,0.78769,2538.2,2538.1,1.275]
[1747722708016,3.99549,2538.3,2538.1,1.275]
[1747722708218,3.99549,2538.3,2538.1,2.06272]
[1747722708417,3.2078,2538.3,2538.2,0.78769]
[1747722708727,0.79353888,2538.4,2538.2,1.9395]
[1747722709033,0.79353888,2538.4,2538.3,1.275]
[1747722709221,0.00590888,2538.4,2538.3,1.275]
[1747722709415,0.00590888,2538.4,2538.3,2.06266]
[1747722709622,0.00590888,2538.4,2538.3,2.68856]
[1747722710327,3.21370888,2538.4,2537.9,0.00590888]
[1747722710828,0.78774,2538.1,2537.9,0.00590888]
[1747722711030,0.78776,2538.0,2537.9,1.30630888]
[1747722711231,4.48130888,2538.4,2537.9,1.30630888]
[1747722711530,0.78774,2538.1,2538.0,0.6645]
[1747722712132,3.99554,2538.1,2538.0,0.6645]
[1747722713430,3.2078,2538.1,2538.0,1.45226]
[1747722713932,4.00135888,2538.4,2538.2,0.78767]
[1747722714127,0.78766,2538.3,2538.2,0.78767]
[1747722715635,0.78774,2538.1,2537.9,0.00590888]
[1747722715827,0.78772,2538.2,2538.0,1.41765]
[1747722716325,0.78772,2538.1,2538.0,1.41765]
[1747722716526,0.78771,2538.2,2538.0,0.6299]
[1747722716827,0.78771,2538.2,2538.0,1.41764]
[1747722717030,3.21370888,2538.4,2538.0,0.6299]
[1747722717232,3.21370888,2538.4,2538.3,0.78766]
[1747722718938,3.2078,2539.0,2538.3,14.30566]
[1747722719229,3.99526,2539.0,2538.4,5.81354]
[1747722719431,3.99526,2539.0,2538.8,0.78749]
[1747722719733,3.2078,2539.1,2538.9,0.6792]
[1747722719927,0.00590888,2539.3,2539.2,0.78738]
[1747722720229,0.78745,2539.0,2538.9,0.6792]
[1747722721120,0.78745,2539.0,2538.9,0.57491625]
[1747722722243,1.27130888,2539.3,2538.9,0.57491625]
[1747722722635,3.2078,2539.1,2538.7,8.517]
[1747722722930,0.78751,2538.8,2538.7,8.517]
[1747722723134,0.78754,2538.7,2538.6,1.2974]
[1747722723931,5.17639,2539.1,2539.0,0.78744]
[1747722723932,3.2078,2539.1,2539.0,0.78744]
[1747722724135,0.00590888,2539.3,2539.2,0.78738]
[1747722724363,0.78741,2539.2,2538.9,3.2078]
[1747722724537,0.78741,2539.2,2539.0,1.9278]
[1747722724837,0.78741,2539.2,2539.1,0.78741]
[1747722725236,0.00590888,2539.3,2539.0,2.08484]
[1747722725537,0.00590888,2539.3,2539.1,0.78739]
[1747722725843,0.79325888,2539.3,2539.2,1.338]
[1747722727335,0.78751,2538.8,2538.7,0.6733]
[1747722727634,0.78757,2538.6,2538.5,1.338]
[1747722727838,0.78765,2538.4,2538.2,0.78767]
[1747722728034,0.78765,2538.4,2538.1,9.8431]
[1747722728035,3.2078,2538.6,2538.5,0.7876]
[1747722728232,0.78763,2538.4,2538.3,4.4752]
[1747722728427,0.78763,2538.4,2538.3,1.2674]
[1747722728842,0.78769,2538.2,2538.1,0.6416]
[1747722729028,0.78785,2537.7,2537.5,0.78789]
[1747722729231,2.6586,2538.1,2537.4,1.2674]
[1747722729533,0.78782,2537.8,2537.4,1.2674]
[1747722729833,0.78783,2537.8,2537.5,3.2078]
[1747722730038,0.78785,2537.7,2537.6,1.2674]
[1747722730244,0.78789,2537.6,2537.4,4.00163888]
[1747722730635,0.78789,2537.6,2537.5,1.2834]
[1747722731140,4.5278,2537.8,2537.5,1.2834]
[1747722731534,0.78785,2537.7,2537.5,1.2834]
[1747722731735,0.78785,2537.7,2537.5,2.07129]
[1747722731936,2.10782,2537.8,2537.6,0.78787]
[1747722732144,2.10782,2537.8,2537.7,1.2834]
[1747722732343,0.78782,2537.8,2537.7,1.2834]
[1747722733144,0.78791,2537.5,2537.4,3.21370888]
[1747722733535,0.78791,2537.5,2537.4,4.49710888]
[1747722735746,1.2742,2537.7,2537.4,4.49710888]
[1747722735947,0.78786,2537.7,2537.5,0.78789]
[1747722736248,0.78786,2537.7,2537.6,1.3175]
[1747722739743,0.78791,2537.5,2537.4,3.21370888]
[1747722740257,0.78791,2537.5,2537.4,4.58930888]
[1747722740539,0.00590888,2537.9,2537.4,9.58930888]
[1747722740743,0.00590888,2537.9,2537.8,0.78782]
[1747722741137,0.00590888,2537.9,2537.8,8.51682]
[1747722741341,0.00590888,2537.9,2537.8,3.51682]
[1747722742546,0.00590888,2537.9,2537.8,12.03082]
[1747722744647,0.00590888,2537.9,2537.8,17.03082]
[1747722745848,0.00590888,2537.9,2537.8,17.02982]
[1747722747049,0.78782,2537.8,2537.7,3.2078]
[1747722747246,0.78785,2537.7,2537.6,1.2886]
[1747722751554,0.78791,2537.5,2537.4,8.51990888]
[1747722753148,1.46991,2537.5,2537.4,8.51990888]
[1747722753350,2.13461,2537.5,2537.4,8.51990888]
[1747722753543,2.13461,2537.5,2536.5,1.97054]
[1747722753544,6.3467,2537.5,2536.4,11.7218]
[1747722753759,0.7881,2536.9,2536.8,1.3319]
[1747722754146,2.8185,2536.9,2536.8,1.3319]
[1747722754955,0.78816,2536.7,2536.6,0.00590888]
[1747722755253,3.99596,2536.7,2536.6,0.00590888]
[1747722755754,10.27156,2536.7,2536.6,8.88e-06]
[1747722755945,10.27156,2536.7,2535.8,10.47719832]
[1747722755946,0.78841,2535.9,2535.8,1.96219832]
[1747722756253,0.78841,2535.9,2535.8,0.61405994]
[1747722757153,2.06401,2535.9,2535.8,0.61405994]
[1747722757453,0.78847,2535.7,2535.6,0.00393928]
[1747722757651,17.51127,2535.7,2535.6,0.00393928]
[1747722758554,12.51327,2535.7,2535.6,0.00393928]
[1747722758860,3.2078,2535.7,2535.6,0.00393928]
[1747722759052,3.2078,2535.7,2535.6,1.25673928]
[1747722759350,5.30327,2535.7,2535.6,0.00393928]
[1747722759556,5.30327,2535.7,2534.9,0.7887]
[1747722759557,0.78861,2535.3,2534.7,4.4606]
[1747722759761,1.307,2535.2,2535.0,0.78866]
[1747722760056,1.307,2535.2,2535.1,1.2528]
[1747722760246,1.307,2535.2,2535.1,2.04146]
[1747722760443,3.2078,2535.3,2535.1,2.04143]
[1747722760649,3.2078,2535.3,2535.2,2.04143]
[1747722760854,3.2078,2535.3,2535.2,1.2528]
[1747722761853,3.2078,2535.3,2535.2,2.04143]
[1747722762649,3.2078,2535.8,2535.6,0.7885]
[1747722762853,3.2078,2535.8,2535.7,0.78847]
[1747722763857,3.2078,2535.8,2535.5,0.7885]
[1747722764051,3.2078,2535.8,2535.3,0.6858]
[1747722764255,0.78856,2535.5,2535.3,0.6858]
[1747722764759,0.78856,2535.4,2535.3,0.6858]
[1747722764959,1.983,2535.7,2535.3,0.6858]
[1747722765154,0.78852,2535.6,2535.3,1.47438]
[1747722765349,0.78852,2535.6,2535.4,1.332]
[1747722765858,2.77149,2535.7,2535.4,2.12056]
[1747722766047,3.2078,2535.8,2535.4,1.332]
[1747722766248,3.2078,2535.8,2535.6,0.78848]
[1747722766443,3.2078,2535.8,2535.7,2.12047]
[1747722766649,3.2078,2535.8,2535.7,1.332]
[1747722766950,3.99624,2535.8,2535.7,1.332]
[1747722769652,5.30604,2535.8,2535.7,1.332]
[1747722771362,3.99624,2535.8,2535.7,1.332]
[1747722771663,3.2078,2535.8,2535.7,2.12047]
[1747722772461,3.2078,2535.8,2535.7,1.332]
[1747722773566,3.99624,2535.8,2535.7,1.332]
[1747722773966,3.2078,2535.8,2535.7,1.332]
[1747722774168,0.78843,2535.9,2535.7,1.332]
[1747722774374,0.78843,2535.9,2535.8,0.6493]
[1747722774669,0.78843,2535.9,2535.7,1.332]
[1747722774670,0.78844,2535.8,2535.7,1.332]
[1747722774874,2.04464,2535.8,2535.7,1.332]
[1747722777882,2.73524,2535.8,2535.7,1.332]
[1747722779283,0.78844,2535.8,2535.7,1.332]
[1747722779979,2.11094,2535.8,2535.7,1.332]
[1747722780683,0.78844,2535.8,2535.7,1.332]
[1747722782284,1.9714,2535.5,2534.9,0.7887]
[1747722782487,1.97142,2535.4,2534.8,1.3077]
[1747722782781,0.78864,2535.2,2535.0,0.78869]
[1747722782984,0.78864,2535.2,2535.1,1.3581]
[1747722783688,9.8392,2535.6,2535.2,0.78862]
[1747722783985,0.78859,2535.4,2535.3,2.0152]
[1747722784185,0.78859,2535.4,2535.3,2.655]
[1747722784385,0.78859,2535.4,2535.3,3.44359]
[1747722784588,0.78855,2535.5,2535.3,3.44359]
[1747722784887,3.2078,2535.8,2535.5,0.78852]
[1747722785084,0.78847,2535.7,2535.6,1.3581]
[1747722786694,0.78856,2535.4,2535.3,1.2969]
[1747722788996,0.78851,2535.6,2535.4,0.78855]
[1747722789197,0.78851,2535.6,2535.5,0.78853]
[1747722789595,0.78851,2535.6,2535.4,2.15935]
[1747722789893,3.2078,2535.8,2535.4,1.3708]
[1747722790090,0.6846,2536.0,2535.5,3.2078]
[1747722790389,0.78845,2535.8,2535.6,2.15928]
[1747722790596,0.78845,2535.8,2535.7,1.3708]
[1747722790790,0.78856,2535.4,2535.3,1.2969]
[1747722790986,0.78845,2535.8,2535.3,2.08549]
[1747722790987,0.78855,2535.5,2535.3,2.08549]
[1747722791294,0.78856,2535.4,2535.3,1.2969]
[1747722792196,0.78856,2535.4,2535.3,2.6088]
[1747722792701,0.78856,2535.4,2535.3,3.39739]
[1747722792997,3.2078,2535.8,2535.7,0.78847]
[1747722793186,0.00590888,2536.1,2536.0,0.78838]
[1747722794297,0.00590888,2536.1,2536.0,3.99618]
[1747722794589,0.00590888,2536.1,2536.0,17.51218]
[1747722795094,0.7882,2536.6,2536.0,17.51218]
[1747722795295,0.78818,2536.7,2536.1,4.4914]
[1747722795483,0.78824,2536.5,2536.1,4.4914]
[1747722795689,0.78824,2536.5,2536.3,0.78827]
[1747722795889,0.78824,2536.5,2536.2,1.2836]
[1747722795890,0.78816,2536.7,2536.4,1.2836]
[1747722796089,0.79407888,2536.7,2536.5,1.41591]
[1747722796295,0.79407888,2536.7,2536.6,1.2836]
[1747722797194,0.00590888,2536.7,2536.6,2.07179]
[1747722797595,0.00590888,2536.7,2536.6,1.2836]
[1747722797799,0.00590888,2536.7,2536.6,2.07179]
[1747722798193,0.00590888,2536.7,2536.6,2.70449]
[1747722800896,3.2078,2537.4,2537.1,0.78803]
[1747722801092,5.29887,2537.4,2537.2,2.06029]
[1747722801288,5.29887,2537.4,2537.3,1.2723]
[1747722801495,3.99574,2537.4,2537.3,1.2723]
[1747722802202,0.78794,2537.4,2537.3,1.2723]
[1747722802399,0.78794,2537.4,2537.3,1.9608]
[1747722804303,0.78794,2537.5,2537.4,0.78794]
[1747722804506,0.00590888,2537.6,2537.4,1.2645]
[1747722804703,0.00590888,2537.6,2537.5,0.78791]
[1747722805201,0.00590888,2537.6,2537.5,1.2645]
[1747722805398,0.00590888,2537.6,2537.5,2.05241]
[1747722808001,0.79378888,2537.6,2537.5,1.2645]
[1747722809703,0.79378888,2537.6,2537.5,2.05241]
[1747722810205,0.00590888,2537.6,2537.5,2.05241]
[1747722811506,0.79378888,2537.6,2537.5,2.05241]
[1747722811710,0.00590888,2537.6,2537.5,2.05241]
[1747722812710,0.00590888,2537.6,2537.3,3.8963]
[1747722812915,1.37480888,2537.6,2537.3,3.8963]
[1747722813107,0.788,2537.2,2537.1,0.00590888]
[1747722813305,3.9958,2537.2,2537.1,0.00590888]
[1747722814414,0.788,2537.2,2537.1,0.00590888]
[1747722814716,0.6487,2537.3,2537.2,0.788]
[1747722814905,1.3689,2537.5,2537.3,0.78795]
[1747722815211,2.15682,2537.5,2537.4,1.2466]
[1747722815407,0.78797,2537.3,2537.1,0.79391888]
[1747722815603,0.788,2537.2,2537.1,1.25250888]
[1747722816025,0.788,2537.2,2537.1,0.00590888]
[1747722816711,4.5767,2537.5,2537.1,0.00590888]
[1747722816907,0.78796,2537.4,2537.2,0.78798]
[1747722817111,0.78794,2537.4,2537.3,1.2669]
[1747722817519,4.5767,2537.5,2537.3,2.05486]
[1747722817810,4.5767,2537.5,2537.3,1.2669]
[1747722818016,0.78794,2537.4,2537.3,1.2669]
[1747722818514,5.36463,2537.5,2537.3,2.05487]
[1747722818707,0.788,2537.2,2537.1,0.00590888]
[1747722820019,1.18209,2537.3,2537.1,0.79393888]
[1747722820209,0.3941,2537.3,2537.1,0.00590888]
[1747722820410,1.9751,2537.2,2537.1,0.00590888]
[1747722820809,2.7631,2537.2,2537.1,0.00590888]
[1747722822214,3.3954,2537.2,2537.1,0.00590888]
[1747722822413,0.3941,2537.3,2537.1,0.00590888]
[1747722822621,0.3941,2537.3,2537.2,0.788]
[1747722822822,0.3941,2537.3,2537.2,2.1566]
[1747722823019,0.3941,2537.3,2537.2,1.3686]
[1747722823212,1.18207,2537.3,2537.2,1.3686]
[1747722823713,0.78797,2537.3,2537.2,1.3686]
[1747722823920,0.788,2537.2,2537.1,0.00590888]
[1747722824112,1.4203,2537.2,2537.1,0.00590888]
[1747722824317,4.6281,2537.2,2537.1,0.00590888]
[1747722824719,0.78816,2536.7,2536.6,3.2078]
[1747722824920,0.78816,2536.7,2536.6,4.5764]
[1747722825423,1.10648078,2536.7,2536.6,4.5764]
[1747722825816,0.78819,2536.6,2536.5,0.6407]
[1747722826013,1.306,2536.6,2536.5,1.42892]
[1747722826218,3.2078,2536.9,2536.8,0.78813]
[1747722826518,3.2078,2536.9,2536.7,0.78814]
[1747722826718,3.9959,2536.9,2536.8,1.2626]
[1747722827825,3.2078,2536.9,2536.8,2.05073]
[1747722828120,3.9959,2536.9,2536.8,1.2626]
[1747722828625,3.9959,2536.9,2536.8,2.05073]
[1747722828626,3.2078,2536.9,2536.8,2.05073]
[1747722829217,3.2078,2537.3,2537.2,0.78798]
[1747722829921,0.3164762,2537.4,2537.3,0.78797]
[1747722830224,1.41183,2537.5,2537.3,0.78797]
[1747722830423,1.41183,2537.5,2537.4,1.3428]
[1747722831923,0.78791,2537.5,2537.4,1.3428]
[1747722832126,3.21370888,2537.6,2537.5,0.78791]
[1747722832323,0.00590888,2537.6,2537.5,9.28291]
[1747722832626,0.00590888,2537.6,2537.5,11.23201]
[1747722834821,0.79378888,2537.6,2537.5,10.4441]
[1747722835025,0.79378888,2537.6,2537.5,9.7548]
[1747722835222,4.00158888,2537.6,2537.5,1.2598]
[1747722835524,0.79378888,2537.6,2537.5,1.2598]
[1747722835922,4.00158888,2537.6,2537.5,1.2598]
[1747722836123,0.00590888,2537.6,2537.5,2.04771]
[1747722837024,0.00590888,2537.6,2537.5,1.2598]
[1747722837421,3.21370888,2537.6,2537.5,2.04771]
[1747722838925,0.00590888,2537.6,2537.5,2.04771]
[1747722839120,0.00590888,2537.6,2537.5,7.04771]
[1747722839524,0.00590888,2537.6,2537.5,2.04771]
[1747722844129,1.96889,2538.7,2537.6,1.96965]
[1747722844320,0.78771,2538.2,2538.0,0.78774]
[1747722844527,0.78771,2538.2,2538.1,1.2988]
[1747722845125,0.78768,2538.3,2538.1,1.2988]
[1747722845325,0.78769,2538.2,2538.1,2.08652]
[1747722845537,0.78776,2538.0,2537.9,0.00590888]
[1747722845734,0.78776,2538.0,2537.9,8.88e-06]
[1747722846042,5.78776,2538.0,2537.9,8.88e-06]
[1747722846242,7.12136,2538.0,2537.9,8.88e-06]
[1747722846727,2.12136,2538.0,2537.9,8.88e-06]
[1747722847731,7.12136,2538.0,2537.9,8.88e-06]
[1747722848129,9.86136,2538.0,2537.9,8.88e-06]
[1747722849431,0.78809,2537.0,2536.8,2.06551]
[1747722849733,3.2078,2537.1,2537.0,0.78807]
[1747722849939,3.99587,2537.1,2536.9,1.41668]
[1747722850237,0.7881,2536.9,2536.8,1.2774]
[1747722850634,3.40769,2537.0,2536.8,2.06553]
[1747722850938,3.21370888,2537.1,2536.8,1.2774]
[1747722851133,0.7881,2536.9,2536.8,1.2774]
[1747722852437,0.78813,2536.8,2536.7,0.00590888]
[1747722852634,2.70393,2536.8,2536.7,0.00590888]
[1747722853237,1.9158,2536.8,2536.7,0.00590888]
[1747722853437,2.70393,2536.8,2536.7,0.00590888]
[1747722853740,1.9158,2536.8,2536.7,0.00590888]
[1747722854145,1.47128,2537.0,2536.7,0.00590888]
[1747722854336,1.47128,2537.0,2536.7,0.79404888]
[1747722854534,2.74298,2537.0,2536.8,1.3209]
[1747722854736,0.7881,2536.9,2536.8,1.3209]
[1747722854937,2.74299,2537.0,2536.8,1.3209]
[1747722855235,0.7881,2536.9,2536.8,1.3209]
[1747722855641,2.74299,2537.0,2536.8,1.3209]
[1747722856645,2.74299,2537.0,2536.8,2.10903]
[1747722856843,1.9549,2537.0,2536.9,0.7881]
[1747722857044,1.9549,2537.0,2536.9,2.0882]
[1747722857341,0.6832,2537.0,2536.9,2.0882]
[1747722857536,3.21370888,2537.1,2536.9,1.3001]
[1747722857732,3.21370888,2537.1,2537.0,0.78807]
[1747722857937,0.00590888,2537.1,2537.0,0.78807]
[1747722858136,0.79393888,2537.1,2537.0,1.3001]
[1747722858341,0.78807,2537.0,2536.9,8.483]
[1747722858545,2.08227,2537.0,2536.9,8.483]
[1747722858952,2.08227,2537.0,2536.9,1.2954]
[1747722859651,1.2942,2537.0,2536.9,1.2954]
[1747722859839,0.00590888,2537.1,2537.0,0.78807]
[1747722863242,0.00590888,2537.1,2537.0,3.99587]
[1747722864743,2.0502,2537.9,2537.7,0.78782]
[1747722864939,0.6804,2538.0,2537.9,0.78779]
[1747722865153,1.3376,2538.3,2538.1,0.78772]
[1747722865553,2.12527,2538.3,2538.1,0.78772]
[1747722865852,1.4265136,2538.2,2538.0,2.13914]
[1747722866043,0.6388136,2538.2,2538.1,0.78772]
[1747722867547,0.6388136,2538.2,2538.0,1.3514]
[1747722867753,0.6388136,2538.2,2538.1,0.78772]
[1747722867951,1.4265036,2538.2,2538.0,2.13914]
[1747722868453,0.78769,2538.2,2538.0,2.13914]
[1747722868650,2.12528,2538.3,2538.1,0.78772]
[1747722868840,2.12528,2538.3,2538.2,1.279]
[1747722870850,3.89410888,2538.4,2538.2,1.279]
[1747722871054,3.21370888,2538.4,2538.3,0.78766]
[1747722871250,0.00590888,2538.4,2538.3,0.78766]
[1747722872558,0.00590888,2538.4,2538.3,3.99546]
[1747722872952,3.8466136,2539.1,2539.0,0.78745]
[1747722873148,0.6388136,2539.1,2539.0,0.78745]
[1747722873353,0.6388136,2539.4,2539.3,0.78735]
[1747722875258,0.6388136,2539.4,2539.0,1.9877]
[1747722875459,1.9976136,2539.4,2539.0,1.9877]
[1747722875757,1.9976136,2539.4,2539.3,0.78735]
[1747722875956,1.9976136,2539.4,2539.0,1.9877]
[1747722876150,1.9976136,2539.4,2539.1,8.479]
[1747722876350,0.6388136,2539.4,2539.3,0.78735]
[1747722877655,0.6388136,2539.4,2539.2,2.11058]
[1747722877952,1.4261536,2539.4,2539.3,8.478]
[1747722878153,1.9908136,2539.4,2539.3,8.478]
[1747722878360,2.7781336,2539.4,2539.3,8.478]
[1747722878659,1.9908136,2539.4,2539.3,10.53025]
[1747722879058,2.13932,2539.4,2539.3,9.7429]
[1747722879758,1.352,2539.4,2539.3,9.7429]
[1747722880559,2.13932,2539.4,2539.3,9.7429]
[1747722881156,1.352,2539.4,2539.3,9.7429]
[1747722881461,1.352,2539.4,2539.3,10.53025]
[1747722881661,3.2078,2539.5,2539.4,0.78732]
[1747722881862,3.2078,2539.5,2539.4,2.03982]
[1747722883264,3.99509,2539.5,2539.4,1.2525]
[1747722883571,5.26359,2539.5,2539.4,1.2525]
[1747722884559,5.26359,2539.5,2539.2,0.78737]
[1747722884560,0.78733,2539.4,2539.2,0.78737]
[1747722884861,3.99511,2539.5,2539.3,0.78735]
[1747722885261,5.26361,2539.5,2539.4,1.3604]
[1747722886370,3.2078,2539.5,2539.4,2.14772]
[1747722888670,3.2078,2539.5,2539.0,0.6317]
[1747722888671,3.2078,2539.5,2539.3,0.78735]
[1747722888871,5.31801,2539.5,2539.3,0.78735]
[1747722889166,4.5307,2539.5,2539.0,2.7056]
[1747722889367,1.41673,2539.4,2539.2,0.78736]
[1747722889564,2.74843,2539.4,2539.3,1.2783]
[1747722889872,2.74843,2539.4,2539.0,1.3668]
[1747722889873,0.78741,2539.1,2539.0,1.3668]
[1747722890063,0.7874,2539.2,2539.0,8.46]
[1747722890267,0.6464,2539.3,2539.2,0.78738]
[1747722891671,0.6464,2539.3,2539.2,1.45598]
[1747722892468,3.99511,2539.5,2539.3,0.78732]
[1747722892670,3.2078,2539.5,2539.4,0.78732]
[1747722894266,3.99509,2539.5,2539.4,0.78732]
[1747722894467,3.2078,2539.5,2539.3,1.3461]
[1747722894768,4.5046,2539.5,2539.4,0.78732]
[1747722894971,3.2078,2539.5,2539.4,0.78732]
[1747722895565,0.00590888,2539.6,2539.5,0.78729]
[1747722895873,0.00590888,2539.6,2539.5,2.05769]
[1747722897466,3.2078,2540.1,2539.6,1.96811]
[1747722897666,4.5015,2540.1,2540.0,0.78713]
[1747722897872,5.28861,2540.1,2539.8,8.46]
[1747722898173,0.78715,2540.0,2539.8,10.51759]
[1747722898363,1.3236,2539.9,2539.8,10.51759]
[1747722898570,1.9733,2539.9,2539.8,10.51759]
[1747722898766,1.9733,2539.9,2539.4,3.2078]
[1747722898963,1.9733,2539.9,2539.7,8.46]
[1747722899165,1.9733,2539.9,2539.8,0.7872]
[1747722900069,0.6497,2539.9,2539.8,0.7872]
[1747722900374,4.5314,2540.1,2540.0,0.78714]
[1747722900871,5.2043,2540.1,2540.0,0.78714]
[1747722901574,5.2043,2540.1,2540.0,2.11514]
[1747722901775,1.9965,2540.1,2540.0,2.11514]
[1747722902974,0.6729,2540.1,2540.0,2.11514]
[1747722903271,0.00590888,2540.2,2540.1,0.7871]
[1747722907377,0.00590888,2540.2,2540.1,9.2451]
[1747722907875,0.00590888,2540.2,2540.1,12.4529]
[1747722914191,0.00590888,2540.2,2540.1,12.4519]
[1747722917271,1.2629,2540.7,2540.6,0.78695]
[1747722917475,0.6361,2540.8,2540.7,0.78692]
[1747722917681,3.99456,2541.3,2541.1,0.78678]
[1747722917884,1.3162,2541.2,2541.1,0.78678]
[1747722918086,4.6869,2541.2,2541.1,0.78678]
[1747722919080,1.9469,2541.2,2541.1,0.78678]
[1747722919690,3.2078,2541.3,2541.2,0.78676]
[1747722921097,0.00590888,2541.4,2541.3,0.78673]
[1747722923082,0.79262888,2541.4,2541.1,8.437]
[1747722923389,1.27230888,2541.4,2541.1,8.437]
[1747722923589,0.78676,2541.2,2541.0,0.78681]
[1747722923792,1.909,2541.1,2541.0,9.22381]
[1747722923992,3.2078,2541.3,2541.2,0.78676]
[1747722924292,0.00590888,2541.4,2541.3,0.78673]
[1747722924488,2.74,2541.8,2541.4,1.96671]
[1747722924689,2.74,2541.8,2541.7,0.78661]
[1747722925090,1.2664,2542.0,2541.9,0.78655]
[1747722927590,3.21173928,2542.2,2542.0,0.7865]
[1747722927892,4.51773928,2542.2,2542.0,1.3306]
[1747722928088,3.21173928,2542.2,2542.1,0.78649]
[1747722928288,3.21173928,2542.2,2542.0,1.3306]
[1747722928792,4.45873928,2542.2,2542.1,0.78648]
[1747722928991,4.45873928,2542.2,2542.0,2.1171]
[1747722929191,4.45873928,2542.2,2542.0,1.3306]
[1747722929396,4.45873928,2542.2,2541.9,9.22154]
[1747722929595,3.21173928,2542.2,2541.9,8.435]
[1747722929894,5.24518928,2542.2,2541.9,9.22153]
[1747722931089,7.98518928,2542.2,2541.9,9.22153]
[1747722931493,7.19873928,2542.2,2541.9,9.22153]
[1747722931891,0.7865,2542.1,2541.9,8.435]
[1747722932195,1.2809,2542.0,2541.9,9.22155]
[1747722932695,2.74393928,2542.2,2542.1,0.78648]
[1747722932897,5.95173928,2542.2,2541.9,9.22153]
[1747722933191,1.2809,2542.1,2541.9,0.78653]
[1747722933396,1.2809,2542.1,2541.9,9.22053]
[1747722933989,1.2809,2542.1,2542.0,0.78652]
[1747722934399,3.21173928,2542.2,2542.1,0.78648]
[1747722935500,3.21173928,2542.2,2542.1,9.22048]
[1747722935691,4.55093928,2542.2,2542.1,9.22048]
[1747722936995,0.00393928,2542.2,2542.1,9.22048]
[1747722937195,0.00393928,2542.2,2542.1,9.87358]
[1747722939599,0.00393928,2542.2,2542.1,9.21948]
[1747722946999,3.2078,2542.5,2542.4,0.78639]
[1747722947303,3.2078,2542.5,2542.4,9.21839]
[1747722947496,3.2078,2542.5,2542.4,9.21139199]
[1747722947902,4.5803,2542.5,2542.4,9.21139199]
[1747722948099,0.78639,2542.4,2542.2,0.79234888]
[1747722948301,1.3725,2542.3,2542.2,0.79234888]
[1747722948802,2.74,2542.5,2542.4,0.78639]
[1747722949602,2.74,2542.5,2542.4,2.11219]
[1747722950302,1.3725,2542.7,2542.5,0.78634]
[1747722950503,1.3725,2542.7,2542.6,0.78633]
[1747722951100,4.1125,2542.7,2542.6,0.78633]
[1747722952603,2.74,2542.7,2542.6,0.78633]
[1747722953103,0.6441,2542.9,2542.8,0.78627]
[1747722953301,0.6441,2542.9,2542.7,0.78627]
[1747722953501,1.3599,2542.8,2542.7,0.78627]
[1747722954504,1.3599,2542.8,2542.7,9.19827]
[1747722955605,3.994,2543.1,2542.7,8.412]
[1747722955805,3.994,2543.1,2542.9,0.78622]
[1747722956005,1.2861,2543.0,2542.9,0.78622]
[1747722957201,4.81231,2543.0,2542.9,0.78622]
[1747722957605,4.0261,2543.0,2542.9,0.78622]
[1747722958199,3.601,2543.1,2543.0,0.78621]
[1747722958808,4.8871,2543.1,2543.0,9.19821]